fUST/lending_fUST_20241119
["ID","MTS","AMOUNT","RATE_DAILY","PERIOD"]
[342511987,1731946252069,-500.0,0.00015616,2]
[342511988,1731946252081,-500.0,0.00015616,2]
[342511989,1731946252094,-637.43,0.00015616,2]
[342511990,1731946252103,-543.87,0.00015616,2]
[342511991,1731946252114,-796.68,0.00015616,2]
[342511992,1731946252123,-500.0,0.00015616,2]
[342511993,1731946252134,-1156.73,0.00015616,2]
[342511994,1731946252144,-500.0,0.00015616,2]
[342511995,1731946252154,-500.0,0.00015616,2]
[342511996,1731946252164,-150.14,0.00015616,2]
[342511997,1731946252174,-150.15,0.00015616,2]
[342511998,1731946252184,-500.0,0.00015616,2]
[342511999,1731946252194,-705.05,0.00015616,2]
[342512000,1731946252204,-6069.46,0.00015616,2]
[342512001,1731946252214,-1297.7,0.00015616,2]
[342512002,1731946252225,-500.0,0.00015616,2]
[342512003,1731946252235,-3553.13,0.00015616,2]
[342512004,1731946252245,-500.0,0.00015616,2]
[342512005,1731946252256,-915.09,0.00015616,2]
[342512006,1731946252266,-682.63,0.00015616,2]
[342512007,1731946252276,-500.0,0.00015616,2]
[342512008,1731946252286,-500.0,0.00015616,2]
[342512009,1731946252295,-1635.11892468,0.0001563,2]
[342512010,1731946252306,-363.23871208,0.00015642,2]
[342512011,1731946252316,-500.0,0.00015642,2]
[342512012,1731946252325,-877.66382743,0.0001579,2]
[342512013,1731946252335,-651.73,0.0001589,2]
[342512014,1731946252348,-444.57277011,0.0001589,2]
[342512015,1731946252357,-601.68982729,0.0001589,2]
[342512016,1731946252366,-500.0,0.0001589,2]
[342512017,1731946252376,-500.0,0.0001589,2]
[342512018,1731946252386,-500.0,0.0001589,2]
[342512019,1731946252395,-500.0,0.0001589,2]
[342512020,1731946252543,-462.68,0.0001589,2]
[342512021,1731946252556,-469.49,0.0001589,2]
[342512022,1731946252566,-484.73,0.0001589,2]
[342512023,1731946252576,-1410.07,0.0001589,2]
[342512024,1731946252586,-500.0,0.0001589,2]
[342512025,1731946252598,-500.0,0.0001589,2]
[342512026,1731946252608,-500.0,0.0001589,2]
[342512027,1731946252618,-500.0,0.0001589,2]
[342512028,1731946252628,-2544.66,0.0001589,2]
[342512029,1731946252638,-500.0,0.0001589,2]
[342512030,1731946252648,-500.0,0.0001589,2]
[342512031,1731946252658,-637.43,0.0001589,2]
[342512032,1731946252668,-543.87,0.0001589,2]
[342512033,1731946252681,-796.68,0.0001589,2]
[342512034,1731946252691,-500.0,0.0001589,2]
[342512035,1731946252701,-1156.73,0.0001589,2]
[342512036,1731946252711,-500.0,0.0001589,2]
[342512037,1731946252722,-500.0,0.0001589,2]
[342512038,1731946252732,-500.0,0.0001589,2]
[342512039,1731946252742,-705.05,0.0001589,2]
[342512040,1731946252751,-6069.46,0.0001589,2]
[342512041,1731946252762,-1297.7,0.0001589,2]
[342512042,1731946252772,-500.0,0.0001589,2]
[342512043,1731946252782,-3553.13,0.0001589,2]
[342512044,1731946252793,-500.0,0.0001589,2]
[342512045,1731946252803,-915.09,0.0001589,2]
[342512046,1731946252812,-682.63,0.0001589,2]
[342512047,1731946252822,-500.0,0.0001589,2]
[342512048,1731946252832,-500.0,0.0001589,2]
[342512049,1731946252846,-500.0,0.00015948,2]
[342512050,1731946252861,-500.0,0.00015948,2]
[342512051,1731946252870,-461.7777245,0.00016,2]
[342512052,1731946252880,-500.0,0.00016154,2]
[342512053,1731946252891,-651.73,0.00016164,2]
[342512054,1731946252901,-230.98,0.00016164,2]
[342512055,1731946252911,-500.0,0.00016164,2]
[342512056,1731946252921,-500.0,0.00016164,2]
[342512057,1731946252932,-500.0,0.00016164,2]
[342512058,1731946252942,-1410.07,0.00016164,2]
[342512059,1731946252952,-610.47749383,0.00016164,2]
[342512060,1731946252962,-500.0,0.00016164,2]
[342512061,1731946252971,-500.0,0.00016164,2]
[342512062,1731946252981,-500.0,0.00016164,2]
[342512063,1731946252991,-2544.66,0.00016164,2]
[342512064,1731946253002,-500.0,0.00016164,2]
[342512065,1731946253011,-500.0,0.00016164,2]
[342512066,1731946253022,-637.43,0.00016164,2]
[342512067,1731946253032,-543.87,0.00016164,2]
[342512068,1731946253042,-796.68,0.00016164,2]
[342512069,1731946253053,-500.0,0.00016164,2]
[342512070,1731946253062,-1156.73,0.00016164,2]
[342512071,1731946253072,-500.0,0.00016164,2]
[342512072,1731946253082,-500.0,0.00016164,2]
[342512073,1731946253096,-500.0,0.00016164,2]
[342512074,1731946253105,-705.05,0.00016164,2]
[342512075,1731946253114,-6069.46,0.00016164,2]
[342512076,1731946253124,-1297.7,0.00016164,2]
[342512077,1731946253134,-500.0,0.00016164,2]
[342512078,1731946253143,-3553.13,0.00016164,2]
[342512079,1731946253155,-500.0,0.00016164,2]
[342512080,1731946253164,-915.09,0.00016164,2]
[342512081,1731946253174,-682.63,0.00016164,2]
[342512082,1731946253183,-500.0,0.00016164,2]
[342512083,1731946253194,-500.0,0.00016164,2]
[342512084,1731946253204,-500.0,0.0001636,2]
[342512085,1731946253214,-168.1761836,0.00016438,2]
[342512086,1731946253224,-651.73,0.00016438,2]
[342512087,1731946253235,-500.0,0.00016438,2]
[342512088,1731946253245,-500.0,0.00016438,2]
[342512089,1731946253254,-500.0,0.00016438,2]
[342512090,1731946253264,-1410.07,0.00016438,2]
[342512091,1731946253273,-500.0,0.00016438,2]
[342512092,1731946253282,-500.0,0.00016438,2]
[342512093,1731946253292,-500.0,0.00016438,2]
[342512094,1731946253302,-2544.66,0.00016438,2]
[342512095,1731946253311,-500.0,0.00016438,2]
[342512096,1731946253322,-500.0,0.00016438,2]
[342512097,1731946253332,-637.43,0.00016438,2]
[342512098,1731946253344,-543.87,0.00016438,2]
[342512099,1731946253354,-796.68,0.00016438,2]
[342512100,1731946253364,-500.0,0.00016438,2]
[342512101,1731946253374,-1156.73,0.00016438,2]
[342512102,1731946253384,-500.0,0.00016438,2]
[342512103,1731946253394,-500.0,0.00016438,2]
[342512104,1731946253404,-705.05,0.00016438,2]
[342512105,1731946253415,-259.20101098,0.00016438,2]
[342512106,1731946253424,-6069.46,0.00016438,2]
[342512107,1731946253435,-1297.7,0.00016438,2]
[342512108,1731946253444,-500.0,0.00016438,2]
[342512109,1731946253455,-3553.13,0.00016438,2]
[342512110,1731946253465,-500.0,0.00016438,2]
[342512111,1731946253475,-915.09,0.00016438,2]
[342512112,1731946253485,-682.63,0.00016438,2]
[342512113,1731946253495,-186.87178386,0.00016438,2]
[342512114,1731946253505,-500.0,0.00016438,2]
[342512115,1731946253516,-587.0,0.0001645,2]
[342512116,1731946253526,-587.0,0.00016573,2]
[342512117,1731946253536,-505.1,0.000167,2]
[342512118,1731946253545,-651.73,0.00016712,2]
[342512119,1731946253555,-399.24713804,0.00016712,2]
[342512120,1731946253565,-359.10857507,0.00016712,2]
[342512121,1731946253575,-500.0,0.00016712,2]
[342512122,1731946253594,-1410.07,0.00016712,2]
[342512123,1731946253626,-500.0,0.00016712,2]
[342512124,1731946253636,-456.43588981,0.00016712,2]
[342512125,1731946253646,-500.0,0.00016712,2]
[342512126,1731946253656,-2544.66,0.00016712,2]
[342512127,1731946253666,-500.0,0.00016712,2]
[342512128,1731946253677,-500.0,0.00016712,2]
[342512129,1731946253690,-637.43,0.00016712,2]
[342512130,1731946253700,-543.87,0.00016712,2]
[342512131,1731946253710,-796.68,0.00016712,2]
[342512132,1731946253722,-500.0,0.00016712,2]
[342512133,1731946253734,-1156.73,0.00016712,2]
[342512134,1731946253744,-571.59,0.00016712,2]
[342512135,1731946253755,-598.46,0.00016712,2]
[342512136,1731946253766,-705.05,0.00016712,2]
[342512137,1731946253777,-6069.46,0.00016712,2]
[342512138,1731946253786,-1297.7,0.00016712,2]
[342512139,1731946253796,-500.0,0.00016712,2]
[342512140,1731946253806,-3553.13,0.00016712,2]
[342512141,1731946253816,-445.64,0.00016712,2]
[342512142,1731946253826,-915.09,0.00016712,2]
[342512143,1731946253835,-682.63,0.00016712,2]
[342512144,1731946253848,-500.0,0.00016712,2]
[342512145,1731946253860,-651.73,0.00016986,2]
[342512146,1731946253869,-500.0,0.00016986,2]
[342512147,1731946253879,-1410.07,0.00016986,2]
[342512148,1731946253889,-434.61258766,0.00016986,2]
[342512149,1731946253899,-474.97195052,0.00016986,2]
[342512150,1731946253909,-2544.66,0.00016986,2]
[342512151,1731946253920,-500.0,0.00016986,2]
[342512152,1731946253930,-500.0,0.00016986,2]
[342512153,1731946253940,-637.43,0.00016986,2]
[342512154,1731946253951,-543.87,0.00016986,2]
[342512155,1731946253960,-796.68,0.00016986,2]
[342512156,1731946253970,-500.0,0.00016986,2]
[342512157,1731946253980,-1156.73,0.00016986,2]
[342512158,1731946253989,-705.05,0.00016986,2]
[342512159,1731946253999,-6069.46,0.00016986,2]
[342512160,1731946254008,-1297.7,0.00016986,2]
[342512161,1731946254018,-79.98413459,0.00016986,2]
[342512162,1731946254136,-419.52770081,0.00016986,2]
[342512163,1731946254155,-500.0,0.00013698,2]
[342512164,1731946254165,-0.4881646,0.00016986,2]
[342512165,1731946254175,-3553.13,0.00016986,2]
[342512166,1731946254185,-915.09,0.00016986,2]
[342512167,1731946254195,-682.63,0.00016986,2]
[342512168,1731946254205,-500.0,0.00016986,2]
[342512169,1731946254215,-877.66382743,0.00017127,2]
[342512170,1731946254224,-1850.99800797,0.00017251,2]
[342512175,1731947225161,-290.00894769,0.00011885,2]
[342512176,1731947225184,-384.2306696,0.00012249,2]
[342512177,1731947225211,-300.0,0.00012295,2]
[342512178,1731947225238,-300.0,0.00012295,2]
[342512179,1731947225262,-853.51700485,0.00012296,2]
[342512180,1731947235140,-1228.59268816,0.00012296,2]
[342512189,1731947348111,-7532.47756599,0.00012296,2]
[342512190,1731947348133,-157.35627254,0.00012685,2]
[342512191,1731947348161,-191.2468088,0.00012785,2]
[342512192,1731947348183,-1475.62592484,0.000129,2]
[342512193,1731947348205,-300.0,0.00012946,2]
[342512194,1731947348227,-162.729278,0.00012947,2]
[342512195,1731947348249,-24900.0,0.00012947,2]
[342512196,1731947348270,-162.729278,0.00012954,2]
[342512197,1731947348291,-162.729278,0.00012961,2]
[342512198,1731947348311,-162.729278,0.00012969,2]
[342512199,1731947348335,-162.729278,0.00012976,2]
[342512200,1731947348357,-162.729278,0.00012983,2]
[342512201,1731947348378,-162.729278,0.0001299,2]
[342512202,1731947348399,-162.729278,0.00012997,2]
[342512203,1731947348423,-162.729278,0.00013005,2]
[342512204,1731947348444,-162.729278,0.00013012,2]
[342512205,1731947348465,-5313.77266449,0.0001326,2]
[342512214,1731947392450,296.48398334,0.00012691,2]
[342512233,1731947432518,-300.0,0.0001269,2]
[342512234,1731947432528,-300.0,0.0001269,2]
[342512235,1731947432537,-16648.54465152,0.00012691,2]
[342512236,1731947432549,-303.39815812,0.00012691,2]
[342512237,1731947432580,-432.97235137,0.00012691,2]
[342512238,1731947432646,-6974.31891106,0.00012691,2]
[342512262,1731947438571,-244.28194459,0.00012691,2]
[342512264,1731947438581,-327.21076281,0.00013598,2]
[342512266,1731947438590,-48.20624138,0.00013598,2]
[342512286,1731947438790,-317.2671625,0.00013598,2]
[342512302,1731947438926,-236.41740246,0.00013598,2]
[342512370,1731947441781,-7624.4878059,0.00013598,2]
[342512371,1731947441804,-327.21076277,0.00013667,2]
[342512372,1731947441825,-1307.72111429,0.00013698,2]
[342512373,1731947441842,-505.98275399,0.00013698,2]
[342512374,1731947441852,-500.0,0.00013698,2]
[342512375,1731947441861,-503.03025797,0.00013698,2]
[342512376,1731947441870,-502.60780709,0.00013698,2]
[342512377,1731947441879,-500.0,0.00013698,2]
[342512378,1731947441889,-500.0,0.00013698,2]
[342512380,1731947441898,-500.0,0.00013698,2]
[342512381,1731947441910,-500.0,0.00013698,2]
[342512382,1731947441919,-503.00209994,0.00013698,2]
[342512383,1731947441928,-505.72001805,0.00013698,2]
[342512384,1731947441942,-500.0,0.00013698,2]
[342512385,1731947441952,-500.0,0.00013698,2]
[342512386,1731947441961,-500.0,0.00013698,2]
[342512387,1731947441971,-500.0,0.00013698,2]
[342512388,1731947441980,-453.86201782,0.00013698,2]
[342512389,1731947441989,-500.0,0.00013698,2]
[342512390,1731947441998,-500.0,0.00013698,2]
[342512391,1731947442009,-500.0,0.00013698,2]
[342512392,1731947442018,-407.92772077,0.00013698,2]
[342512393,1731947442027,-500.0,0.00013698,2]
[342512394,1731947442037,-529.25587311,0.00013698,2]
[342512395,1731947442046,-512.63374312,0.00013698,2]
[342512396,1731947442057,-500.0,0.00013698,2]
[342512397,1731947442070,-568.60093428,0.00013698,2]
[342512398,1731947442080,-500.0,0.00013698,2]
[342512399,1731947442090,-500.0,0.00013698,2]
[342512400,1731947442099,-500.0,0.00013698,2]
[342512401,1731947442110,-500.0,0.00013698,2]
[342512402,1731947442120,-500.0,0.00013698,2]
[342512403,1731947442129,-500.0,0.00013698,2]
[342512404,1731947442141,-500.0,0.00013698,2]
[342512405,1731947442150,-500.0,0.00013698,2]
[342512406,1731947442159,-500.0,0.00013698,2]
[342512407,1731947442169,-504.91536972,0.00013698,2]
[342512408,1731947442179,-501.51446838,0.00013698,2]
[342512409,1731947442192,-500.0,0.00013698,2]
[342512410,1731947442202,-501.61494409,0.00013698,2]
[342512411,1731947442211,-504.00207565,0.00013698,2]
[342512412,1731947442221,-529.57680423,0.00013698,2]
[342512413,1731947442231,-500.0,0.00013698,2]
[342512414,1731947442241,-257.58291188,0.00013698,2]
[342512415,1731947442251,-500.0,0.00013698,2]
[342512416,1731947442261,-500.0,0.00013698,2]
[342512417,1731947442271,-501.27994742,0.00013698,2]
[342512418,1731947442281,-500.0,0.00013698,2]
[342512419,1731947442290,-515.67862687,0.00013698,2]
[342512420,1731947442300,-500.0,0.00013698,2]
[342512421,1731947442310,-502.34739337,0.00013698,2]
[342512422,1731947442320,-500.0,0.00013698,2]
[342512423,1731947442330,-500.0,0.00013698,2]
[342512424,1731947442340,-500.0,0.00013698,2]
[342512425,1731947442350,-509.10598836,0.00013698,2]
[342512426,1731947442359,-504.07500167,0.00013698,2]
[342512427,1731947442369,-508.55716606,0.00013698,2]
[342512428,1731947442378,-500.0,0.00013698,2]
[342512429,1731947442388,-543.0977758,0.00013698,2]
[342512430,1731947442398,-500.0,0.00013698,2]
[342512431,1731947442407,-500.0,0.00013698,2]
[342512432,1731947442418,-503.92764657,0.00013698,2]
[342512433,1731947442427,-500.0,0.00013698,2]
[342512434,1731947442441,-501.356347,0.00013698,2]
[342512435,1731947442451,-532.06258102,0.00013698,2]
[342512436,1731947442460,-500.0,0.00013698,2]
[342512437,1731947442470,-500.0,0.00013698,2]
[342512438,1731947442479,-500.0,0.00013698,2]
[342512439,1731947442488,-507.22377753,0.00013698,2]
[342512440,1731947442498,-500.0,0.00013698,2]
[342512441,1731947442507,-500.0,0.00013698,2]
[342512442,1731947442517,-505.64600726,0.00013698,2]
[342512443,1731947442526,-500.0,0.00013698,2]
[342512444,1731947442535,-500.0,0.00013698,2]
[342512445,1731947442545,-573.88082742,0.00013698,2]
[342512446,1731947442554,-500.0,0.00013698,2]
[342512447,1731947442563,-215.62360728,0.00013698,2]
[342512448,1731947442577,-103.40968087,0.00013698,2]
[342512449,1731947442587,-500.0,0.00013698,2]
[342512450,1731947442596,-500.0,0.00013698,2]
[342512451,1731947442605,-370.97427872,0.00013698,2]
[342512452,1731947442615,-500.0,0.00013698,2]
[342512453,1731947442624,-500.0,0.00013698,2]
[342512454,1731947442634,-500.0,0.00013698,2]
[342512455,1731947442645,-500.0,0.00013698,2]
[342512456,1731947442655,-500.0,0.00013698,2]
[342512457,1731947442664,-500.0,0.00013698,2]
[342512458,1731947442674,-500.0,0.00013698,2]
[342512459,1731947442686,-36.52113784,0.00013698,2]
[342512487,1731947443537,-733.9336212,0.00013698,2]
[342512577,1731947446409,-747.89774787,0.00013698,2]
[342512579,1731947446424,-481.64749309,0.00013698,2]
[342512580,1731947446438,-500.0,0.00013698,2]
[342512581,1731947446450,-500.0,0.00013698,2]
[342512582,1731947446461,-500.0,0.00013698,2]
[342512583,1731947446473,-500.0,0.00013698,2]
[342512584,1731947446484,-500.0,0.00013698,2]
[342512585,1731947446496,-502.65267119,0.00013698,2]
[342512586,1731947446507,-500.0,0.00013698,2]
[342512587,1731947446519,-500.0,0.00013698,2]
[342512588,1731947446531,-500.0,0.00013698,2]
[342512589,1731947446544,-619.55191038,0.00013698,2]
[342512590,1731947446556,-500.0,0.00013698,2]
[342512591,1731947446566,-500.0,0.00013698,2]
[342512592,1731947446578,-568.9,0.00013698,2]
[342512593,1731947446589,-585.5,0.00013698,2]
[342512594,1731947446599,-500.0,0.00013698,2]
[342512595,1731947446612,-518.90747882,0.00013698,2]
[342512596,1731947446623,-500.0,0.00013698,2]
[342512597,1731947446637,-500.0,0.00013698,2]
[342512598,1731947446647,-500.0,0.00013698,2]
[342512599,1731947446660,-500.0,0.00013698,2]
[342512600,1731947446672,-2336.0,0.00013698,2]
[342512601,1731947446683,-500.0,0.00013698,2]
[342512602,1731947446698,-649.58574662,0.00013698,2]
[342512603,1731947446710,-500.0,0.00013698,2]
[342512604,1731947446721,-500.0,0.00013698,2]
[342512605,1731947446732,-519.39244337,0.00013698,2]
[342512606,1731947446743,-500.0,0.00013698,2]
[342512607,1731947446755,-500.0,0.00013698,2]
[342512608,1731947446766,-500.0,0.00013698,2]
[342512609,1731947446777,-500.0,0.00013698,2]
[342512610,1731947446788,-217.73855162,0.00013698,2]
[342512611,1731947446799,-500.0,0.00013698,2]
[342512612,1731947446811,-500.0,0.00013698,2]
[342512613,1731947446822,-500.0,0.00013698,2]
[342512614,1731947446832,-500.0,0.00013698,2]
[342512615,1731947446844,-500.0,0.00013698,2]
[342512616,1731947446855,-500.0,0.00013698,2]
[342512617,1731947446866,-500.0,0.00013698,2]
[342512618,1731947446877,-627.64,0.00013698,2]
[342512619,1731947446889,-220.41470877,0.00013698,2]
[342512620,1731947446900,-501.45794595,0.00013698,2]
[342512621,1731947446913,-500.0,0.00013698,2]
[342512622,1731947446924,-500.0,0.00013698,2]
[342512623,1731947446939,-500.0,0.00013698,2]
[342512624,1731947446950,-500.0,0.00013698,2]
[342512625,1731947446962,-500.0,0.00013698,2]
[342512626,1731947446973,-500.0,0.00013698,2]
[342512627,1731947446986,-500.0,0.00013698,2]
[342512628,1731947446997,-502.11329868,0.00013698,2]
[342512629,1731947447009,-500.0,0.00013698,2]
[342512630,1731947447022,-500.0,0.00013698,2]
[342512631,1731947447033,-500.0,0.00013698,2]
[342512632,1731947447045,-500.0,0.00013698,2]
[342512633,1731947447059,-500.0,0.00013698,2]
[342512634,1731947447074,-503.1962462,0.00013698,2]
[342512635,1731947447085,-500.53810249,0.00013698,2]
[342512636,1731947447095,-500.0,0.00013698,2]
[342512637,1731947447106,-501.75553592,0.00013698,2]
[342512638,1731947447116,-314.91524562,0.00013698,2]
[342512639,1731947447126,-504.41453201,0.00013698,2]
[342512640,1731947447136,-341.08367357,0.00013698,2]
[342512641,1731947447147,-502.58139788,0.00013698,2]
[342512642,1731947447159,-500.0,0.00013698,2]
[342512643,1731947447170,-512.74304872,0.00013698,2]
[342512644,1731947447181,-500.0,0.00013698,2]
[342512645,1731947447197,-500.0,0.00013698,2]
[342512646,1731947447208,-646.28,0.00013698,2]
[342512647,1731947447221,-504.43410723,0.00013698,2]
[342512648,1731947447232,-501.6270335,0.00013698,2]
[342512649,1731947447243,-500.0,0.00013698,2]
[342512650,1731947447255,-500.0,0.00013698,2]
[342512651,1731947447266,-500.68906246,0.00013698,2]
[342512652,1731947447277,-500.54702441,0.00013698,2]
[342512653,1731947447288,-1477.35,0.00013698,2]
[342512654,1731947447299,-500.0,0.00013698,2]
[342512655,1731947447310,-500.0,0.00013698,2]
[342512656,1731947447321,-500.0,0.00013698,2]
[342512657,1731947447333,-627.4,0.00013698,2]
[342512658,1731947447344,-574.97173742,0.00013698,2]
[342512659,1731947447355,-500.0,0.00013698,2]
[342512660,1731947447366,-214.20548851,0.00013698,2]
[342512661,1731947447380,-2190.58,0.00013698,2]
[342512662,1731947447391,-500.0,0.00013698,2]
[342512663,1731947447402,-500.0,0.00013698,2]
[342512664,1731947447413,-500.0,0.00013698,2]
[342512665,1731947447424,-693.97,0.00013698,2]
[342512666,1731947447435,-500.0,0.00013698,2]
[342512667,1731947447448,-500.0,0.00013698,2]
[342512668,1731947447459,-500.0,0.00013698,2]
[342512669,1731947447469,-500.0,0.00013698,2]
[342512670,1731947447479,-500.0,0.00013698,2]
[342512671,1731947447490,-500.0,0.00013698,2]
[342512672,1731947447500,-1553.69,0.00013698,2]
[342512673,1731947447511,-152.35940962,0.00013698,2]
[342512674,1731947447522,-517.92503262,0.00013698,2]
[342512675,1731947447533,-199.17093623,0.00013698,2]
[342512676,1731947447545,-500.0,0.00013698,2]
[342512677,1731947447555,-3137.39,0.00013698,2]
[342512678,1731947447565,-500.0,0.00013698,2]
[342512679,1731947447576,-500.0,0.00013698,2]
[342512680,1731947447587,-500.0,0.00013698,2]
[342512681,1731947447597,-500.0,0.00013698,2]
[342512682,1731947447607,-500.0,0.00013698,2]
[342512683,1731947447618,-500.0,0.00013698,2]
[342512684,1731947447629,-500.0,0.00013698,2]
[342512685,1731947447640,-500.0,0.00013698,2]
[342512686,1731947447650,-500.0,0.00013698,2]
[342512687,1731947447661,-500.0,0.00013698,2]
[342512688,1731947447671,-500.0,0.00013698,2]
[342512689,1731947447682,-597.78,0.00013698,2]
[342512690,1731947447696,-500.0,0.00013698,2]
[342512691,1731947447707,-500.0,0.00013698,2]
[342512692,1731947447719,-574.89,0.00013698,2]
[342512693,1731947447730,-500.0,0.00013698,2]
[342512694,1731947447740,-611.94,0.00013698,2]
[342512695,1731947447750,-500.0,0.00013698,2]
[342512696,1731947447760,-551.72805956,0.00013698,2]
[342512697,1731947447771,-500.0,0.00013698,2]
[342512698,1731947447781,-500.0,0.00013698,2]
[342512699,1731947447792,-500.0,0.00013698,2]
[342512700,1731947447803,-500.0,0.00013698,2]
[342512701,1731947447813,-500.0,0.00013698,2]
[342512702,1731947447824,-500.0,0.00013698,2]
[342512703,1731947447835,-500.0,0.00013698,2]
[342512704,1731947447845,-500.0,0.00013698,2]
[342512705,1731947447856,-500.0,0.00013698,2]
[342512706,1731947447867,-500.0,0.00013698,2]
[342512707,1731947447878,-500.0,0.00013698,2]
[342512708,1731947447889,-511.77381879,0.00013698,2]
[342512709,1731947447899,-215.859445,0.00013699,2]
[342512710,1731947447910,-500.0,0.00013699,2]
[342512711,1731947447921,-490.50928649,0.00013699,2]
[342512712,1731947447931,-327.21076277,0.00013735,2]
[342512713,1731947447948,-327.21076277,0.00013804,2]
[342512714,1731947447958,-500.0,0.00013871,2]
[342512715,1731947447969,-500.0,0.00013871,2]
[342512716,1731947447980,-500.0,0.00013871,2]
[342512717,1731947447990,-265.53964327,0.00013871,2]
[342512718,1731947448001,-327.21076277,0.00013872,2]
[342512719,1731947448012,-238.64843741,0.00013872,2]
[342512720,1731947448028,-91.35156259,0.00013872,2]
[342512721,1731947448039,-2317.44843741,0.00013872,2]
[342512722,1731947448053,-6140.00000004,0.00013872,2]
[342512723,1731947448069,-91110.01076174,0.00013872,2]
[342512724,1731947448080,-562.9393885,0.00013873,2]
[342512725,1731947448092,-503.56010155,0.00013873,2]
[342512726,1731947448103,-504.44464,0.00013873,2]
[342512727,1731947448115,-500.0,0.00013873,2]
[342512728,1731947448126,-500.0,0.00013873,2]
[342512729,1731947448137,-302.36637322,0.00013873,2]
[342512730,1731947448150,-500.0,0.00013873,2]
[342512731,1731947448160,-539.98947699,0.00013873,2]
[342512732,1731947448171,-500.0,0.00013873,2]
[342512733,1731947448182,-500.0,0.00013873,2]
[342512734,1731947448200,-500.0,0.00013873,2]
[342512735,1731947448212,-500.0,0.00013873,2]
[342512736,1731947448449,-500.0,0.00013873,2]
[342512737,1731947448460,-420.0,0.00013921,2]
[342512738,1731947448470,-420.0,0.00013958,2]
[342512739,1731947448481,-500.0,0.00013972,2]
[342512740,1731947448490,-500.0,0.00013972,2]
[342512741,1731947448500,-500.0,0.00013972,2]
[342512742,1731947448509,-500.0,0.00013972,2]
[342512743,1731947448519,-500.0,0.00013972,2]
[342512744,1731947448528,-500.0,0.00013972,2]
[342512745,1731947448537,-500.0,0.00013972,2]
[342512746,1731947448547,-500.0,0.00013972,2]
[342512747,1731947448556,-356.07335512,0.00013972,2]
[342512748,1731947448566,-419.96521657,0.00013972,2]
[342512749,1731947448575,-500.0,0.00013972,2]
[342512750,1731947448584,-500.0,0.00013972,2]
[342512751,1731947448594,-502.10230827,0.00013972,2]
[342512752,1731947448604,-500.0,0.00013972,2]
[342512753,1731947448613,-500.0,0.00013972,2]
[342512754,1731947448623,-500.0,0.00013972,2]
[342512755,1731947448632,-500.0,0.00013972,2]
[342512756,1731947448641,-500.0,0.00013972,2]
[342512757,1731947448651,-625.16,0.00013972,2]
[342512758,1731947448661,-500.0,0.00013972,2]
[342512759,1731947448670,-500.0,0.00013972,2]
[342512760,1731947448680,-500.0,0.00013972,2]
[342512761,1731947448693,-2000.0,0.00013972,2]
[342512762,1731947448703,-500.0,0.00013972,2]
[342512763,1731947448711,-501.70962605,0.00013972,2]
[342512764,1731947448721,-500.0,0.00013972,2]
[342512765,1731947448730,-445.91,0.00013972,2]
[342512766,1731947448739,-500.0,0.00013972,2]
[342512767,1731947448749,-568.9,0.00013972,2]
[342512768,1731947448759,-500.0,0.00013972,2]